[Event "Chessable English Open-ch 2022"]
[Site "Kenilwoth"]
[Date "2022.05.19"]
[Round "2.2"]
[White "Ashton, Adam G"]
[Black "Pert, Richard G"]
[Result "1/2-1/2"]
[ECO "B13"]
[WhiteElo "2366"]
[BlackElo "2415"]
[Annotator "TA"]
[PlyCount "88"]
[EventDate "2022.05.18"]
[EventType "swiss"]
[EventCountry "ENG"]
[SourceTitle "playchess.com"]
[Source "ChessBase"]
[SourceQuality "1"]
[TimeControl "5400+30"]

{[%evp 9,88,16,15,10,14,14,12,11,17,27,30,12,4,0,0,7,1,15,0,7,4,-25,-24,-25,-37,-48,-12,-29,0,0,0,0,0,4,13,-21,-29,-15,25,25,57,64,112,62,85,73,150,93,75,91,102,0,0,0,129,150,147,138,108,86,116,68,66,8,3,8,7,8,8,0,0,0,0,0,0,0,0,0,0,0,15]} 1. e4 {[%emt 0:00:42]} c6 {[%emt 0:00:16]} 2. d4 {[%emt 0:00:37]} d5 {[%emt 0:00:08]} 3. exd5 {[%emt 0:00:45]} cxd5 {[%emt 0:00:08]} 4. Nf3 {[%emt 0:00:06]} Nf6 {[%emt 0:01:20]} 5. Ne5 {[%emt 0:00:41]} g6 {[%emt 0:00:28]} 6. Bb5+ {[%emt 0:00:08] B13: Caro-Kann: Exchange Variation and Panov-Botvinnik Attack.} Nbd7 {[%emt 0:00:22]} 7. O-O {[%emt 0:01:39]} Bg7 {[%emt 0:00:21]} 8. Re1 $1 {[%emt 0:04:16]} O-O {[%emt 0:01:24]} 9. Nf3 {[%emt 0:01:21]} Ne4 {[%emt 0:01:03]} 10. Bd3 {[%emt 0:03:35]} e5 {[%emt 0:05:51]} 11. c3 {[%emt 0:26:30]} Nxf2 {[%emt 0:01:28]} 12. Kxf2 {[%emt 0:01:28][%cal Rd4e5]} e4 {[%emt 0:00:16] [#]} 13. Bxe4 $146 {[%emt 0:01:33]} ({Predecessor:} 13. Be2 exf3 14. Bxf3 Nf6 15. Bf4 Ne4+ 16. Bxe4 dxe4 17. Rxe4 b5 18. Kg1 Bb7 19. Re3 {1-0 (48) Gavrilescu,D (2477)-Pert,R (2416) Douglas 2021}) 13... dxe4 {[%emt 0:00:11]} 14. Rxe4 {[%emt 0:00:23]} b5 {[%emt 0:01:07]} 15. Nbd2 {[%emt 0:04:31]} Bb7 {[%emt 0:03:59]} 16. Re1 {[%emt 0:02:21]} b4 {[%emt 0:19:50]} 17. Kg1 {[%emt 0:12:57]} bxc3 {[%emt 0:05:56]} 18. bxc3 {[%emt 0:00:19]} Qc7 {[%emt 0:00:36]} 19. Ba3 {[%emt 0:07:40]} Rfe8 {[%emt 0:02:34]} 20. Qb3 {[%emt 0:03:45]} Nb6 {[%emt 0:03:02]} 21. Bc5 {[%emt 0:05:27]} Bh6 {[%emt 0:05:38]} 22. Qb5 {[%emt 0:02:49]} Bc6 {[%emt 0:09:05][%mdl 1024] Black has compensation.} 23. Qd3 {[%emt 0:02:16]} Nd5 {[%emt 0:00:38]} 24. Ne4 {[%emt 0:02:09]} Bg7 {[%emt 0:08:33] A strong pair of Bishops.} 25. Bd6 {[%emt 0:02:36]} Qd8 {[%emt 0:01:49]} (25... Qb7 $14 {is more appropriate.}) 26. Be5 {[%emt 0:04:48]} (26. Bg3 $1 $16) 26... f6 {[%emt 0:01:24]} 27. Bg3 {[%emt 0:02:19][%cal Be5g3,Bg3e1,Be1f2][%mdl 32] White is more active.} Qa5 {[%emt 0:07:26] [#]} (27... Nb6 $142) 28. c4 {[%emt 0:01:25]} ({Better is} 28. Nd6 $1 {[%cal Rd6e8]} Qxc3 29. Qxc3 Nxc3 30. Nxe8 Bxe8 31. Rac1 Nxa2 32. Rc7) 28... Nb4 $16 {[%emt 0:00:33][%csl LRa2,LRd3]} 29. Qb1 {[%emt 0:00:48] Nd6 is the strong threat.} f5 {[%emt 0:09:27] [#]} 30. Ned2 {[%emt 0:03:08]} (30. Nd6 $1 $16 Bxf3 31. Nxe8 Bxd4+ 32. Kh1) 30... Rxe1+ $11 {[%emt 0:01:10]} 31. Bxe1 {[%emt 0:00:25]} Qd8 {[%emt 0:00:14]} 32. Bf2 $16 {[%emt 0:00:56]} Rb8 {[%emt 0:00:14]} 33. a3 {[%emt 0:00:59]} Nd5 {[%emt 0:01:16]} 34. Qc2 {[%emt 0:00:19]} Nf6 {[%emt 0:02:42]} 35. Ne5 {[%emt 0:01:30]} (35. d5 $16 Ng4 36. Bd4 Bxd4+ 37. Nxd4) 35... Ba8 $14 {[%emt 0:02:00]} 36. Rb1 {[%emt 0:00:06]} ({White should play} 36. Qc3 $14) 36... Rxb1+ $11 {[%emt 0:01:28] The position is equal.} 37. Qxb1 {[%emt 0:00:07]} Ne4 {[%emt 0:00:06]} 38. Nxe4 {[%emt 0:00:17]} Bxe4 {[%emt 0:00:05]} 39. Qb5 {[%emt 0:00:39]} Bxe5 {[%emt 0:02:12]} 40. Qxe5 {[%emt 0:00:09]} Qg5 {[%emt 0:00:03][%csl Ge4][%cal Rg5g2]} 41. Qe6+ {[%emt 0:01:24]} Kg7 {[%emt 0:00:31][%csl Ge4][%cal Rg5g2]} 42. Qe5+ {[%emt 0:00:16]} Kg8 {[%emt 0:00:20][%csl Ge4][%cal Rg5g2]} 43. Qe6+ {[%emt 0:00:07]} Kg7 {[%emt 0:00:05][%csl Ge4][%cal Rg5g2]} 44. Qe5+ {[%emt 0:00:08]} Kg8 {[%emt 0:00:05] Weighted Error Value: White=0.13 (very precise) /Black=0.12 (very precise)} 1/2-1/2

[Event "Chessable English Open-ch 2022"]
[Site "Kenilwoth"]
[Date "2022.05.19"]
[Round "2.3"]
[White "Wadsworth, Matthew J"]
[Black "Hackner, Oskar A"]
[Result "1-0"]
[ECO "A11"]
[WhiteElo "2432"]
[BlackElo "2177"]
[Annotator "TA"]
[PlyCount "101"]
[EventDate "2022.05.18"]
[EventType "swiss"]
[EventCountry "ENG"]
[SourceTitle "playchess.com"]
[Source "ChessBase"]
[SourceQuality "1"]
[TimeControl "5400+30"]

{[%evp 14,101,25,15,22,15,30,10,21,1,6,-37,-8,-33,-34,-60,-58,-73,-81,-63,-16,-101,-100,-144,-9,-46,-57,-55,-43,-40,-36,-43,0,0,-9,-29,0,0,0,0,29,31,29,23,23,18,16,0,0,0,100,100,108,89,96,88,93,91,87,90,93,85,134,108,238,238,237,237,247,245,220,205,203,206,535,496,654,654,660,637,747,718,29968,29969,5506,5189,29974,29975,29982,29983]} 1. c4 {[%emt 0:00:03]} Nf6 {[%emt 0:00:07]} 2. g3 {[%emt 0:00:05]} c6 {[%emt 0:00:05]} 3. Bg2 {[%emt 0:00:11]} d5 {[%emt 0:00:06]} 4. Nf3 {[%emt 0:00:15]} g6 {[%emt 0:00:11]} 5. b3 {[%emt 0:00:07]} Bg7 {[%emt 0:00:07]} 6. Bb2 {[%emt 0:00:07]} O-O {[%emt 0:00:07]} 7. O-O {[%emt 0:00:41]} a5 {[%emt 0:00:38]} 8. d3 {[%emt 0:01:09] 8.Nc3 is the modern continuation.} Re8 {[%emt 0:03:19] A11: English Opening: 1...c6.} 9. Qc2 {[%emt 0:00:59] has lost popularity (9.Nbd2).} Na6 {[%emt 0:01:14][%cal Bb8a6,Ba6c7,Bc7b5][%mdl 32] [#]} 10. Bc3 $146 {[%emt 0:00:41]} ({Predecessor:} 10. a3 Bg4 11. Ne5 Be6 12. Nd2 Nd7 13. Nxd7 Bxb2 14. Qxb2 Qxd7 15. Rfc1 Qd6 16. cxd5 cxd5 {1-0 (64) Malikentzos,S (2441)-Markgraf,A (2502) Porto Carras 2018}) 10... b5 {[%emt 0:05:15] The position is equal.} 11. cxb5 {[%emt 0:01:37]} cxb5 {[%emt 0:00:07]} 12. Qb2 {[%emt 0:00:58]} Bb7 {[%emt 0:02:55]} (12... b4 $5 {[%cal Rb4c3]} 13. Bd4 Bb7 $11) 13. Nbd2 {[%emt 0:01:19]} b4 {[%emt 0:06:59]} 14. Bd4 {[%emt 0:02:03]} Nc7 {[%emt 0:01:33]} 15. Rac1 {[%emt 0:05:22]} Nb5 {[%emt 0:01:26]} 16. Be5 {[%emt 0:00:57]} Qb6 {[%emt 0:10:32]} (16... Bh6 $15) 17. Nb1 {[%emt 0:04:30]} (17. e3 $11) 17... Bh6 $1 $17 {[%emt 0:04:27]} 18. Rc2 {[%emt 0:13:06]} Rac8 {[%emt 0:04:59]} ({Black should play} 18... Nd7 $17 19. d4 Nxe5 20. dxe5 Rec8) 19. a4 {[%emt 0:07:21]} bxa3 {[%emt 0:14:46]} 20. Nxa3 {[%emt 0:00:13][%cal Bb1a3,Ba3c2,Bc2d4][%mdl 32]} Rxc2 {[%emt 0:01:09]} 21. Nxc2 {[%emt 0:00:11]} Nd7 {[%emt 0:00:57]} 22. Bf4 {[%emt 0:03:05]} Bxf4 {[%emt 0:11:05]} (22... Bg7 $5 {[%cal Rg7b2]} 23. d4 Nf6 $15) 23. gxf4 {[%emt 0:00:05]} Rc8 {[%emt 0:06:45]} 24. Bh3 {[%emt 0:07:45]} e6 {[%emt 0:05:05]} 25. Ra1 {[%emt 0:05:13]} Nc3 {[%emt 0:05:48]} 26. Ncd4 {[%emt 0:00:57]} Nf8 {[%emt 0:02:56]} 27. Qa3 {[%emt 0:05:13]} Rc5 {[%emt 0:00:28]} 28. e3 {[%emt 0:01:33]} Bc8 {[%emt 0:00:43][%cal Oe6e5]} 29. Bf1 {[%emt 0:04:15][%cal Bh3f1,Bf1e2,Be2b5][%mdl 32]} Nd7 {[%emt 0:00:34]} 30. Ne2 {[%emt 0:02:34]} Nxe2+ {[%emt 0:02:18]} 31. Bxe2 {[%emt 0:00:06]} Qc7 {[%emt 0:02:15] [#]} (31... d4 $11) 32. d4 $1 $16 {[%emt 0:02:03]} Rc3 {[%emt 0:00:09]} 33. Qe7 {[%emt 0:01:25]} ({But not} 33. Qxa5 Qxa5 34. Rxa5 Rxb3 $11) 33... h6 {[%emt 0:01:41]} 34. Bb5 $40 {[%emt 0:03:22][%mdl 128] White goes for the king.} Kg7 {[%emt 0:01:32][%cal Od7e5]} 35. Kg2 {[%emt 0:04:26] White is more active.} Nf6 {[%emt 0:03:46]} 36. Qxc7 {[%emt 0:00:07]} Rxc7 {[%emt 0:00:07]} 37. Rxa5 {[%emt 0:00:06]} Ne4 {[%emt 0:00:37]} (37... Bd7 $142) 38. Bd3 {[%emt 0:03:25]} Nd6 {[%emt 0:00:45] Loses the game.} (38... Bd7 $16 {was worth a try.}) 39. Rc5 $18 {[%emt 0:01:11]} Rb7 {[%emt 0:00:10] [#]} 40. Rc6 $1 {[%emt 0:05:08]} Rd7 {[%emt 0:00:05]} 41. Ne5 {[%emt 0:00:28]} Bb7 {[%emt 0:00:33]} 42. Rb6 {[%emt 0:02:47]} ({Don't do} 42. Nxd7 $6 Bxc6 43. Nc5 Kf8 $14) 42... Rd8 {[%emt 0:00:04]} 43. Bb5 {[%emt 0:02:24] Strongly threatening Bd7.} g5 $2 {[%emt 0:01:25]} (43... Ba8 {is a better chance.} 44. Kf3 g5) 44. Bd7 {[%emt 0:01:17]} f6 {[%emt 0:00:43]} 45. Rxd6 {[%emt 0:00:06]} fxe5 {[%emt 0:00:08]} 46. fxe5 {[%emt 0:00:06][%cal Bf4e5,Be5d6][%mdl 32]} Kf8 {[%emt 0:00:46]} 47. Bxe6 {[%emt 0:00:18]} Rxd6 {[%emt 0:00:12]} 48. exd6 {[%emt 0:00:04] KB-KB} Bc6 {[%emt 0:00:12]} 49. Kg3 {[%emt 0:00:25] Threatening mate with Kg4.} h5 {[%emt 0:00:14]} 50. h4 {[%emt 0:00:06]} gxh4+ {[%emt 0:00:07]} 51. Kxh4 {[%emt 0:00:09] Weighted Error Value: White=0.13 (very precise) /Black=0.58} 1-0

[Event "Chessable English Open-ch 2022"]
[Site "Kenilwoth"]
[Date "2022.05.19"]
[Round "2.4"]
[White "Haydon, David L"]
[Black "Roberson, Peter T"]
[Result "1/2-1/2"]
[ECO "D13"]
[WhiteElo "2275"]
[BlackElo "2421"]
[Annotator "TA"]
[PlyCount "78"]
[EventDate "2022.05.18"]
[EventType "swiss"]
[EventCountry "ENG"]
[SourceTitle "playchess.com"]
[Source "ChessBase"]
[SourceQuality "1"]
[TimeControl "5400+30"]

{[%evp 19,78,0,0,0,11,0,-3,0,0,-5,-5,-13,0,0,0,0,0,0,0,0,0,0,0,0,0,0,0,0,0,0,0,0,0,0,0,0,0,0,0,0,0,0,0,0,0,-101,-106,-106,-118,-389,0,0,0,0,0,0,0,0,0,0,0]} 1. d4 {[%emt 0:00:03]} d5 {[%emt 0:00:52]} 2. Nf3 {[%emt 0:00:11]} Nf6 {[%emt 0:00:08]} 3. c4 {[%emt 0:00:53]} c6 {[%emt 0:00:27]} 4. cxd5 {[%emt 0:02:38]} cxd5 {[%emt 0:00:38]} 5. Nc3 {[%emt 0:00:22]} Nc6 {[%emt 0:02:36]} 6. Bf4 {[%emt 0:03:48]} a6 {[%emt 0:01:03]} 7. e3 {[%emt 0:00:35]} Bg4 {[%emt 0:01:46]} 8. Be2 {[%emt 0:00:30]} e6 {[%emt 0:03:33]} 9. Ne5 {[%emt 0:02:32]} Bxe2 {[%emt 0:04:48]} 10. Qxe2 {[%emt 0:00:23]} Rc8 {[%emt 0:09:47]} 11. O-O {[%emt 0:02:40] D13: Slav Defence: Exchange variation without ...Bf5.} Bd6 {[%emt 0:01:15]} 12. Nxc6 {[%emt 0:00:48]} Rxc6 {[%emt 0:00:15]} 13. Bxd6 {[%emt 0:00:45]} Qxd6 {[%emt 0:00:38]} 14. Rac1 {[%emt 0:00:06]} O-O {[%emt 0:04:17] [#]} 15. Na4 $146 {[%emt 0:00:54]} ({Predecessor:} 15. a3 Rfc8 16. Na2 Rxc1 17. Rxc1 Rxc1+ 18. Nxc1 Qc7 19. Na2 Ne4 20. f3 Nd6 21. Nc3 {½-½ (31) Del Rey,D (2394)-Oratovsky,M (2495) Mondariz 2015}) 15... Nd7 {[%emt 0:05:36]} 16. Rc2 {[%emt 0:02:40]} Rfc8 {[%emt 0:10:12]} 17. Rfc1 {[%emt 0:00:19]} g6 {[%emt 0:04:49]} 18. g3 {[%emt 0:00:52]} Kg7 {[%emt 0:02:48]} 19. Kg2 {[%emt 0:03:47]} h5 {[%emt 0:00:14]} 20. h4 {[%emt 0:00:30]} Rxc2 {[%emt 0:06:40]} 21. Rxc2 {[%emt 0:00:25]} Rc6 {[%emt 0:01:31]} 22. b3 {[%emt 0:01:27]} Qc7 {[%emt 0:07:49]} 23. Rxc6 {[%emt 0:00:43]} Qxc6 $11 {[%emt 0:01:16][%mdl 4096] Endgame KQN-KQN} 24. Qb2 {[%emt 0:00:15]} Nf6 {[%emt 0:06:00]} 25. Qc3 {[%emt 0:04:15] [#] Qxc6 is the strong threat.} Qb5 {[%emt 0:03:47]} 26. Qc2 {[%emt 0:02:22]} Ne4 {[%emt 0:02:32]} 27. Qb2 {[%emt 0:02:33]} Qc6 {[%emt 0:02:55]} 28. Nc5 {[%emt 0:00:49]} Nxc5 {[%emt 0:02:45]} 29. dxc5+ {[%emt 0:00:16] KQ-KQ} f6 {[%emt 0:00:47]} 30. Qc2 {[%emt 0:02:30]} d4+ {[%emt 0:01:34]} 31. f3 {[%emt 0:04:22]} dxe3 {[%emt 0:01:18] Threatens to win with ...Qd5.} 32. Qd3 {[%emt 0:01:08]} (32. Qc3 $11) 32... Qxc5 $17 {[%emt 0:02:47] Hoping for ...g5.} 33. Qd7+ {[%emt 0:01:24] [#]} Kf8 $1 {[%emt 0:06:09]} 34. Qxe6 $2 {[%emt 0:01:36][%mdl 8192]} (34. Qd8+ $17 {keeps fighting.} Kf7 35. Qd7+ Qe7 36. Qd4) 34... Qe7 $2 {[%emt 0:03:07]} (34... Qc2+ $19 35. Kh3 e2 36. Qxf6+ Ke8 37. Qe5+ Kd7 38. Qd5+ Kc7 39. Qe5+ Kd8 40. Qd6+ Kc8 41. Qe6+ Kc7 42. Qe7+ Kb6 43. Qb4+ Kc6 44. Qa4+ b5 45. Qxa6+ Kd5 46. Qxb5+ Kd4) 35. Qc8+ $11 {[%emt 0:01:05] The position is equal.} Kg7 {[%emt 0:00:16] Strongly threatening ...e2.} 36. Kf1 {[%emt 0:00:28]} g5 {[%emt 0:00:54]} 37. Ke2 {[%emt 0:01:17]} Qd6 {[%emt 0:00:36]} 38. Qxb7+ {[%emt 0:01:39]} Kh6 {[%emt 0:00:26] ( -> ...Qd2+)} 39. hxg5+ {[%emt 0:00:53]} fxg5 {[%emt 0:01:09] Weighted Error Value: White=0.18 (very precise) /Black=0.16 (very precise)} 1/2-1/2

[Event "Chessable English Open-ch 2022"]
[Site "Kenilwoth"]
[Date "2022.05.19"]
[Round "2.5"]
[White "Willow, Jonah B"]
[Black "Royal, Shreyas"]
[Result "1/2-1/2"]
[ECO "A14"]
[WhiteElo "2401"]
[BlackElo "2385"]
[Annotator "TA RC"]
[PlyCount "124"]
[EventDate "2022.05.18"]
[EventType "swiss"]
[EventCountry "ENG"]
[SourceTitle "playchess.com"]
[Source "ChessBase"]
[SourceQuality "1"]
[TimeControl "5400+30"]

{[%evp 15,124,15,23,15,9,13,22,17,25,20,28,14,31,29,51,39,35,44,68,59,58,63,63,19,85,83,120,126,179,181,181,181,181,176,176,165,168,184,191,118,179,179,157,155,155,154,142,142,170,179,198,192,192,181,272,266,252,211,218,188,191,191,197,198,179,193,173,187,175,178,205,205,179,179,177,93,93,93,93,93,93,93,93,93,93,92,92,0,0,0,0,0,0,0,0,0,0,0,0,0,0,0,0,0,0,0,0,0,0,0,0]} 1. Nf3 {[%emt 0:00:17]} d5 {[%emt 0:00:07]} 2. g3 {[%emt 0:00:08]} Nf6 {[%emt 0:00:07]} 3. Bg2 {[%emt 0:00:02]} e6 {[%emt 0:00:13]} 4. O-O {[%emt 0:00:08]} Be7 {[%emt 0:00:04]} 5. c4 {[%emt 0:00:05]} O-O {[%emt 0:00:07]} 6. b3 {[%emt 0:00:02]} b6 {[%emt 0:00:29]} 7. Bb2 {[%emt 0:00:22]} Bb7 {[%emt 0:00:10]} 8. cxd5 {[%emt 0:00:26]} exd5 {[%emt 0:00:15]} 9. e3 {[%emt 0:00:08] A14: English Opening: 1...e6 with b3 by White.} Nbd7 {[%emt 0:01:36]} 10. Nc3 {[%emt 0:00:23][%cal Bb1c3,Bc3e2,Be2f4][%mdl 32]} Re8 {[%emt 0:03:33]} 11. Rc1 {[%emt 0:00:30]} a6 {[%emt 0:01:28]} 12. Ne2 {[%emt 0:00:13]} Bd6 {[%emt 0:18:59]} 13. Nf4 {[%emt 0:06:32]} Nc5 {[%emt 0:02:02]} 14. b4 {[%emt 0:03:44]} Ne6 {[%emt 0:03:06]} 15. Nxe6 {[%emt 0:00:19]} (15. Qc2 {is more complex.} Nd7 16. a3 c5 17. Nxe6 Rxe6 18. bxc5 bxc5 19. Bxg7 d4 20. Bxd4 Bxf3 21. Bxf3 cxd4 22. Bxa8 Qxa8 23. Qc8+) 15... fxe6 {[%emt 0:01:02] [#]} 16. Be5 $146 {[%emt 0:04:38]} ({Predecessor:} 16. Qb3 e5 17. Nh4 a5 18. b5 a4 19. Qd3 Qd7 20. f4 e4 21. Qe2 Rf8 22. Be5 {1-0 (60) Anton Guijarro,D (2693)-Gukesh,D (2614) Warsaw 2021}) 16... Rc8 {[%emt 0:21:42]} 17. Qb3 {[%emt 0:03:45]} Qe7 {[%emt 0:00:19]} 18. Bxd6 {[%emt 0:05:02]} cxd6 {[%emt 0:00:11]} 19. Qb2 {[%emt 0:03:24]} Qd7 {[%emt 0:11:11]} (19... e5 $11) 20. Bh3 $16 {[%emt 0:04:23]} Ne4 {[%emt 0:05:20]} 21. d3 {[%emt 0:02:39]} Qf7 {[%emt 0:00:06]} (21... Nf6 $16) 22. Rxc8 {[%emt 0:04:00]} Bxc8 {[%emt 0:00:19]} 23. dxe4 {[%emt 0:01:27]} Qxf3 {[%emt 0:00:22]} 24. Bg2 {[%emt 0:00:02]} Qh5 {[%emt 0:04:28]} 25. Qd4 {[%emt 0:02:21]} dxe4 {[%emt 0:01:15]} 26. Qxd6 {[%emt 0:00:29]} Qd5 {[%emt 0:24:59] [#]} 27. Qxb6 {[%emt 0:00:25]} (27. Rd1 $1 $18 {[%cal Rd1d5]} Qxa2 28. Bxe4) 27... Qxa2 {[%emt 0:00:00]} (27... Bd7 $16 28. Ra1 (28. Qxa6 Bb5 $15) 28... Bb5) 28. Bxe4 $40 {[%emt 0:00:21][%mdl 128] White attacks with force.} Qc4 {[%emt 0:00:00]} 29. Bg2 {[%emt 0:01:24] White is more active.} Bd7 {[%emt 0:00:00]} 30. Qd6 {[%emt 0:01:22]} Bb5 {[%emt 0:00:00]} 31. Rd1 {[%emt 0:00:34] Inhibits Qd3.} Qa2 {[%emt 0:00:00]} 32. h4 {[%emt 0:01:43]} Rf8 {[%emt 0:00:00]} 33. Rd2 {[%emt 0:02:02]} Qc4 {[%emt 0:00:00]} 34. Kh2 {[%emt 0:01:08]} Qb3 {[%emt 0:00:00]} (34... h6 $142 35. Bh3 Rf6) 35. Bh3 {[%emt 0:01:24]} Re8 {[%emt 0:00:00]} 36. Rd4 {[%emt 0:00:53] [#] aiming for Rf4.} e5 {[%emt 0:00:00] Prevents Rf4.} 37. Rd5 {[%emt 0:05:16]} Qc2 {[%emt 0:00:00]} 38. Rd2 {[%emt 0:01:13]} Qc6 {[%emt 0:00:00]} 39. Qxc6 {[%emt 0:06:07]} Bxc6 $18 {[%emt 0:00:00][%mdl 4096] Endgame KRB-KRB} 40. Bf1 {[%emt 0:00:03]} Rb8 {[%emt 0:00:00]} 41. Rd6 {[%emt 0:01:17]} ({Don't do} 41. Bxa6 Rxb4 42. Bf1 Kf7 $16) 41... Bf3 {[%emt 0:00:00]} 42. Bg2 {[%emt 0:16:14]} ({But not} 42. Bxa6 $6 Rxb4 43. Bd3 e4 $14) 42... Bxg2 {[%emt 0:00:00]} 43. Kxg2 {[%emt 0:00:01]} Rxb4 {[%emt 0:00:00]} 44. Rxa6 {[%emt 0:00:04] KR-KR} Kf7 {[%emt 0:00:00]} 45. Kf3 {[%emt 0:01:18]} ({Better is} 45. h5 $18) 45... h5 $16 {[%emt 0:00:00]} 46. Ra7+ {[%emt 0:00:33]} Kf6 {[%emt 0:00:00]} 47. Ra8 {[%emt 0:00:04]} Rc4 {[%emt 0:00:00]} 48. Rf8+ {[%emt 0:00:15]} Ke6 {[%emt 0:00:00]} 49. Ke2 {[%emt 0:01:29]} g6 {[%emt 0:01:09]} 50. Kd3 {[%emt 0:02:21]} Ra4 {[%emt 0:00:05]} 51. f4 {[%emt 0:03:44]} (51. Re8+ $16 Kf6 52. Rb8) 51... Ra3+ $11 {[%emt 0:01:35] The position is equal.} 52. Ke4 {[%emt 0:00:08] Re8+ is the strong threat.} Ra4+ {[%emt 0:00:18]} 53. Kf3 {[%emt 0:00:31]} (53. Kd3 $5 {[%cal Rf8e8]} e4+ 54. Kd2 $11) 53... e4+ {[%emt 0:01:23]} 54. Kg2 {[%emt 0:00:19]} Ra2+ {[%emt 0:00:16]} 55. Kh3 {[%emt 0:00:18]} Ke7 {[%emt 0:00:19] Prevents Re8+.} 56. Rb8 {[%emt 0:03:28] Black must now prevent Rb6.} Ra3 {[%emt 0:00:18]} 57. Rb5 {[%emt 0:00:27] Hoping for Re5+.} Rxe3 {[%emt 0:00:11]} 58. Kg2 {[%emt 0:02:52]} Kf6 {[%emt 0:00:29]} 59. Re5 {[%emt 0:00:19]} Re2+ {[%emt 0:00:19]} 60. Kf1 {[%emt 0:00:11]} Re3 {[%emt 0:00:08]} 61. Kf2 {[%emt 0:00:42]} Rf3+ {[%emt 0:00:06]} 62. Kg2 {[%emt 0:00:03]} Re3 {[%emt 0:00:06] Black defended with fortune.  Weighted Error Value: White=0.07 (flawless) /Black=0.12 (very precise)} 1/2-1/2

[Event "Chessable English Open-ch 2022"]
[Site "Kenilwoth"]
[Date "2022.05.19"]
[Round "2.6"]
[White "Derakhshani, Borna"]
[Black "Parker, Keith"]
[Result "1-0"]
[ECO "A14"]
[WhiteElo "2388"]
[BlackElo "1815"]
[Annotator "TA"]
[PlyCount "49"]
[EventDate "2022.05.18"]
[EventType "swiss"]
[EventCountry "ENG"]
[SourceTitle "playchess.com"]
[Source "ChessBase"]
[SourceQuality "1"]
[TimeControl "5400+30"]

{[%evp 15,49,6,14,29,42,42,42,42,33,29,47,15,70,73,208,172,258,234,241,136,185,170,428,407,446,411,485,331,568,564,928,927,921,917,897,892]} 1. Nf3 {[%emt 0:05:43]} d5 {[%emt 0:00:08]} 2. b3 {[%emt 0:00:16]} Nf6 {[%emt 0:01:07]} 3. Bb2 {[%emt 0:00:08]} e6 {[%emt 0:01:50]} 4. c4 {[%emt 0:00:15]} Nbd7 {[%emt 0:03:46]} 5. g3 {[%emt 0:00:41]} Be7 {[%emt 0:00:51]} 6. Bg2 {[%emt 0:00:13]} c6 {[%emt 0:01:21]} 7. O-O {[%emt 0:00:17]} O-O {[%emt 0:00:43]} 8. d3 {[%emt 0:01:08][%cal Bd2d3,Bd3d4][%mdl 32]} a5 {[%emt 0:06:43]} 9. Nc3 {[%emt 0:00:55] A14: English Opening: 1...e6 with b3 by White.} Nc5 {[%emt 0:02:46] 9...b6 injects fresh life into this line.} 10. Qc2 {[%emt 0:05:12]} a4 {[%emt 0:06:56]} 11. d4 {[%emt 0:08:38] White is slightly better.} a3 {[%emt 0:02:23]} 12. Bc1 {[%emt 0:00:12]} Nce4 {[%emt 0:02:37] [#]} 13. c5 $146 {[%emt 0:01:24]} ({Predecessor:} 13. Ne5 Bb4 14. Nxe4 Nxe4 15. Be3 f6 16. Nd3 Ba5 17. Bxe4 dxe4 18. Nc5 f5 19. f3 {1-0 (28) Jouhki,Y (2306)-Molander,R (2246) Vammala 1999}) 13... Qa5 {[%emt 0:06:13]} (13... Nxc3 $11 14. Qxc3 Ne4) 14. Na4 $14 {[%emt 0:01:06]} b5 {[%emt 0:04:22]} (14... Nd7 $16) 15. cxb6 $18 {[%emt 0:01:07] Strongly threatening Ne5.} Ba6 {[%emt 0:01:40] [#]} (15... Bb7 {might work better.} 16. Ne5 Bb4) 16. Ne5 $1 {[%emt 0:00:55]} Bb5 {[%emt 0:55:04]} 17. b7 {[%emt 0:00:37]} ({Inferior is} 17. Nxc6 Bxc6 18. Qxc6 Rfc8 $11) (17. f3 $18 Nd6 18. Bxa3) 17... Ra6 {[%emt 0:00:00]} (17... Rab8 $16) 18. Bf4 $36 {[%emt 0:09:10][%mdl 2048] White has strong initiative.} Bd6 $2 {[%emt 0:00:00]} (18... Nd6 19. Nc5 Ra7) 19. f3 {[%emt 0:01:54]} Bxa4 {[%emt 0:00:00]} 20. bxa4 {[%emt 0:00:17]} Nc3 {[%emt 0:00:00]} 21. Rac1 {[%emt 0:01:07]} Nxa4 {[%emt 0:00:00] [#]} (21... Nxa2 22. Qxa2 Qxa4) 22. Nxc6 {[%emt 0:00:12] White is clearly winning.} Qc7 {[%emt 0:00:00]} 23. Bxd6 {[%emt 0:00:08]} Qxd6 {[%emt 0:00:00]} 24. b8=Q {[%emt 0:00:07]} Rxb8 {[%emt 0:00:00]} 25. Nxb8 {[%emt 0:00:04] Black did not feel at home in the position after the opening.  Weighted Error Value: White=0.23 (precise) /Black=0.71} 1-0